fUST/lending_fUST_20250614
["ID","MTS","AMOUNT","RATE_DAILY","PERIOD"]
[365739265,1749862239135,-460.0,0.00022352,4]
[365739266,1749862239144,-460.0,0.00022352,4]
[365739267,1749862239154,-460.0,0.00022352,4]
[365739268,1749862239163,-1517.7,0.00022352,4]
[365739269,1749862239171,-460.0,0.00022352,4]
[365739270,1749862239181,-460.0,0.00022352,4]
[365739271,1749862239191,-679.05,0.00022352,4]
[365739272,1749862239200,-460.0,0.00022352,4]
[365739273,1749862239210,-490.58,0.00022352,4]
[365739274,1749862239222,-1057.15,0.00022352,4]
[365739275,1749862239231,-198.15148337,0.00022352,4]
[365739276,1749862239241,-460.0,0.00022352,4]
[365739277,1749862239250,-460.0,0.00022352,4]
[365739278,1749862239260,-459.87659794,0.00022352,4]
[365739279,1749862239271,-390.0,0.00022352,4]
[365739280,1749862239280,-460.0,0.00022352,4]
[365739281,1749862239289,-390.0,0.00022352,4]
[365739282,1749862239298,-191.42,0.00022353,4]
[365739283,1749862239308,-460.0,0.00022353,4]
[365739284,1749862239317,-410.0,0.00022353,4]
[365739285,1749862239327,-242.7,0.00022353,4]
[365739286,1749862239336,-370.0,0.00022353,4]
[365739287,1749862239346,-460.0,0.00022353,4]
[365739288,1749862239356,-460.0,0.00022353,4]
[365739289,1749862239365,-460.0,0.00022353,4]
[365739290,1749862239374,-460.0,0.00022353,4]
[365739291,1749862239384,-460.0,0.00022353,4]
[365739292,1749862239393,-460.0,0.00022353,4]
[365739293,1749862239402,-460.0,0.00022354,4]
[365739294,1749862239412,-168.43,0.00022354,4]
[365739295,1749862239422,-253.06503057,0.00022354,4]
[365739296,1749862239431,-400.0,0.00022354,4]
[365739297,1749862239441,-180.0571668,0.0002239,2]
[365739298,1749862239450,-2218.7505955,0.00022417,7]
[365739299,1749862239460,-151.0,0.00022452,2]
[365739300,1749862239469,-1000.0,0.00022452,2]
[365739301,1749862239479,-1000.0,0.00022452,2]
[365739302,1749862239489,-1000.0,0.00022452,2]
[365739303,1749862239499,-1000.0,0.00022452,2]
[365739304,1749862239508,-1000.0,0.00022452,2]
[365739305,1749862239518,-5000.0,0.00022452,2]
[365739306,1749862239527,-1000.0,0.00022452,2]
[365739307,1749862239537,-216.63087839,0.00022452,2]
[365739308,1749862239547,-1000.0,0.00022452,2]
[365739309,1749862239556,-500.0,0.00022452,2]
[365739310,1749862239565,-151.0,0.00022452,2]
[365739311,1749862239575,-151.0,0.00022452,2]
[365739312,1749862239584,-151.0,0.00022452,2]
[365739313,1749862239594,-270.98328894,0.00022452,2]
[365739314,1749862239605,-11598.50874313,0.00022452,2]
[365739315,1749862239616,-151.0,0.00022466,7]
[365739316,1749862239626,-151.0,0.00022466,7]
[365739317,1749862239635,-500.0,0.00022466,2]
[365739318,1749862239644,-500.0,0.00022466,2]
[365739319,1749862239653,-500.0,0.00022466,2]
[365739320,1749862239663,-500.0,0.00022466,2]
[365739321,1749862239672,-500.0,0.00022466,2]
[365739322,1749862239681,-500.0,0.00022466,2]
[365739323,1749862239774,-500.0,0.00022466,2]
[365739324,1749862239786,-500.0,0.00022466,2]
[365739325,1749862239796,-500.0,0.00022466,2]
[365739326,1749862239806,-500.0,0.00022466,2]
[365739327,1749862239816,-500.0,0.00022466,2]
[365739328,1749862239826,-500.0,0.00022466,2]
[365739329,1749862239836,-476.00857026,0.00022466,2]
[365739330,1749862239846,-500.0,0.00022466,2]
[365739331,1749862239856,-500.0,0.00022466,2]
[365739332,1749862239871,-500.0,0.00022466,2]
[365739333,1749862239880,-500.0,0.00022466,2]
[365739334,1749862239890,-500.0,0.00022466,2]
[365739335,1749862239900,-500.0,0.00022466,2]
[365739336,1749862239910,-500.0,0.00022466,2]
[365739337,1749862239919,-500.0,0.00022466,2]
[365739338,1749862239928,-500.0,0.00022466,2]
[365739339,1749862239938,-500.0,0.00022466,2]
[365739340,1749862239947,-500.0,0.00022466,2]
[365739341,1749862239957,-500.0,0.00022466,2]
[365739342,1749862239966,-500.0,0.00022466,2]
[365739343,1749862239975,-500.0,0.00022466,2]
[365739344,1749862239984,-500.0,0.00022466,2]
[365739345,1749862239994,-500.0,0.00022466,2]
[365739346,1749862240003,-500.0,0.00022466,2]
[365739347,1749862240012,-500.0,0.00022466,2]
[365739348,1749862240022,-500.0,0.00022466,2]
[365739350,1749862240031,-500.0,0.00022466,2]
[365739352,1749862240040,-500.0,0.00022466,2]
[365739353,1749862240050,-500.0,0.00022466,2]
[365739354,1749862240059,-500.0,0.00022466,2]
[365739355,1749862240069,-500.0,0.00022466,2]
[365739356,1749862240078,-500.0,0.00022466,2]
[365739357,1749862240087,-1721.0,0.00022467,2]
[365739358,1749862240097,-160.936316,0.00022505,2]
[365739359,1749862240106,-2218.7505955,0.00022521,7]
[365739360,1749862240116,-160.0,0.00022613,2]
[365739361,1749862240126,-2218.7505955,0.00022624,7]
[365739362,1749862240135,-460.0,0.00022626,4]
[365739363,1749862240145,-460.0,0.00022626,4]
[365739364,1749862240154,-460.0,0.00022626,4]
[365739365,1749862240164,-460.0,0.00022626,4]
[365739366,1749862240173,-460.0,0.00022626,4]
[365739367,1749862240182,-460.0,0.00022626,4]
[365739368,1749862240192,-460.0,0.00022626,4]
[365739369,1749862240201,-460.0,0.00022626,4]
[365739370,1749862240211,-460.0,0.00022626,4]
[365739371,1749862240220,-900.75,0.00022626,4]
[365739372,1749862240230,-460.0,0.00022626,4]
[365739373,1749862240239,-527.63,0.00022626,4]
[365739374,1749862240248,-460.0,0.00022626,4]
[365739375,1749862240258,-460.0,0.00022626,4]
[365739376,1749862240268,-460.0,0.00022626,4]
[365739377,1749862240277,-460.0,0.00022626,4]
[365739378,1749862240287,-725.53,0.00022626,4]
[365739379,1749862240296,-340.0,0.00022626,4]
[365739380,1749862240306,-460.0,0.00022626,4]
[365739381,1749862240315,-484.27,0.00022626,4]
[365739382,1749862240325,-330.0,0.00022626,4]
[365739383,1749862240334,-4052.33,0.00022626,4]
[365739384,1749862240344,-460.0,0.00022626,4]
[365739385,1749862240355,-1181.2,0.00022626,4]
[365739386,1749862240364,-350.55440323,0.00022626,4]
[365739387,1749862240374,-460.0,0.00022626,4]
[365739388,1749862240383,-659.53,0.00022626,4]
[365739389,1749862240393,-460.0,0.00022626,4]
[365739390,1749862240403,-603.53,0.00022626,4]
[365739391,1749862240413,-460.0,0.00022626,4]
[365739392,1749862240422,-460.0,0.00022626,4]
[365739393,1749862240432,-460.0,0.00022626,4]
[365739394,1749862240441,-460.0,0.00022626,4]
[365739395,1749862240451,-460.0,0.00022626,4]
[365739396,1749862240461,-1517.7,0.00022626,4]
[365739397,1749862240471,-460.0,0.00022626,4]
[365739398,1749862240480,-460.0,0.00022626,4]
[365739399,1749862240490,-679.05,0.00022626,4]
[365739400,1749862240499,-460.0,0.00022626,4]
[365739401,1749862240509,-490.58,0.00022626,4]
[365739402,1749862240519,-1057.15,0.00022626,4]
[365739403,1749862240529,-460.0,0.00022626,4]
[365739404,1749862240538,-380.0,0.00022626,4]
[365739405,1749862240548,-460.0,0.00022626,4]
[365739406,1749862240558,-350.70962939,0.00022627,4]
[365739407,1749862240567,-460.0,0.00022627,4]
[365739408,1749862240577,-404.02199873,0.00022627,4]
[365739409,1749862240586,-460.0,0.00022627,4]
[365739410,1749862240595,-460.0,0.00022627,4]
[365739411,1749862240606,-460.0,0.00022627,4]
[365739412,1749862240616,-151.0,0.00022627,7]
[365739413,1749862240626,-500.0,0.00022627,4]
[365739414,1749862240635,-152.375438,0.00022627,7]
[365739415,1749862240645,-151.0,0.00022627,7]
[365739416,1749862240654,-151.0,0.00022627,7]
[365739417,1749862240664,-460.0,0.00022627,4]
[365739418,1749862240673,-414.99,0.00022628,4]
[365739419,1749862240683,-568.0,0.00022665,3]
[365739420,1749862240692,-731.3,0.00022665,3]
[365739421,1749862240702,-630.79,0.00022665,3]
[365739422,1749862240712,-151.0,0.00022675,7]
[365739423,1749862240721,-151.0,0.00022675,7]
[365739424,1749862240731,-210.26,0.00022679,3]
[365739425,1749862240740,-189.32,0.00022679,3]
[365739426,1749862240750,-844.94977992,0.00022687,2]
[365739427,1749862240759,-151.0,0.00022689,7]
[365739428,1749862240768,-151.0,0.00022689,7]
[365739429,1749862240778,-213.24139183,0.00022689,2]
[365739430,1749862240787,-160.0,0.00022692,2]
[365739431,1749862240797,-160.0,0.00022692,2]
[365739432,1749862240806,-160.0,0.00022692,2]
[365739433,1749862240815,-160.0,0.00022692,2]
[365739434,1749862240825,-160.0,0.00022692,2]
[365739435,1749862240834,-160.0,0.00022692,2]
[365739436,1749862240843,-213.24139183,0.00022728,7]
[365739437,1749862240853,-12531.02669373,0.00022728,7]
[365739438,1749862240866,-2218.7505955,0.00022728,7]
[365739439,1749862240875,-180.0571668,0.00022801,2]
[365739440,1749862240885,-1721.0,0.00022817,2]
[365739441,1749862240894,-2218.7505955,0.00022831,8]
[365739442,1749862240903,-424.32678023,0.00022867,2]
[365739443,1749862240913,-160.0,0.00022867,2]
[365739444,1749862240923,-229.78555783,0.00022867,2]
[365739445,1749862240932,-221.53154545,0.000229,4]
[365739446,1749862240941,-460.0,0.000229,4]
[365739447,1749862240950,-460.0,0.000229,4]
[365739448,1749862240959,-320.0,0.000229,4]
[365739449,1749862240968,-460.0,0.000229,4]
[365739450,1749862240979,-460.0,0.000229,4]
[365739451,1749862240989,-460.0,0.000229,4]
[365739452,1749862240998,-460.0,0.000229,4]
[365739453,1749862241007,-460.0,0.000229,4]
[365739454,1749862241016,-900.75,0.000229,4]
[365739455,1749862241025,-460.0,0.000229,4]
[365739456,1749862241034,-506.56287931,0.000229,4]
[365739457,1749862241043,-527.63,0.000229,4]
[365739458,1749862241052,-253.06438386,0.000229,4]
[365739459,1749862241063,-460.0,0.000229,4]
[365739460,1749862241071,-460.0,0.000229,4]
[365739461,1749862241081,-460.0,0.000229,4]
[365739462,1749862241090,-725.53,0.000229,4]
[365739463,1749862241100,-460.0,0.000229,4]
[365739464,1749862241109,-484.27,0.000229,4]
[365739465,1749862241118,-4052.33,0.000229,4]
[365739466,1749862241129,-460.0,0.000229,4]
[365739467,1749862241141,-1181.2,0.000229,4]
[365739468,1749862241151,-319.18,0.000229,4]
[365739469,1749862241162,-659.53,0.000229,4]
[365739470,1749862241175,-460.0,0.000229,4]
[365739471,1749862241186,-603.53,0.000229,4]
[365739472,1749862241195,-460.0,0.000229,4]
[365739473,1749862241206,-419.45,0.000229,4]
[365739474,1749862241217,-332.37,0.000229,4]
[365739475,1749862241226,-460.0,0.000229,4]
[365739476,1749862241236,-220.93581245,0.000229,4]
[365739477,1749862241245,-1517.7,0.000229,4]
[365739478,1749862241254,-460.0,0.000229,4]
[365739479,1749862241263,-460.0,0.000229,4]
[365739480,1749862241273,-679.05,0.000229,4]
[365739481,1749862241282,-460.0,0.000229,4]
[365739482,1749862241292,-490.58,0.000229,4]
[365739483,1749862241301,-1057.15,0.000229,4]
[365739484,1749862241310,-460.0,0.000229,4]
[365739485,1749862241319,-460.0,0.000229,4]
[365739486,1749862241328,-460.0,0.00022901,4]
[365739487,1749862241338,-151.0,0.00022901,7]
[365739488,1749862241347,-151.0,0.00022901,7]
[365739489,1749862241356,-152.225194,0.00022901,7]
[365739490,1749862241366,-151.0,0.00022901,7]
[365739491,1749862241375,-151.685943,0.00022901,7]
[365739492,1749862241385,-151.0,0.00022901,7]
[365739493,1749862241396,-460.0,0.00022901,4]
[365739494,1749862241407,-460.0,0.00022901,4]
[365739495,1749862241418,-271.490356,0.00022901,7]
[365739496,1749862241428,-271.490356,0.00022901,7]
[365739497,1749862241438,-151.0,0.00022901,7]
[365739498,1749862241447,-460.0,0.00022901,4]
[365739499,1749862241457,-4326.805281,0.00022901,2]
[365739500,1749862241466,-4326.805281,0.00022901,2]
[365739501,1749862241550,-151.0,0.00022901,7]
[365739502,1749862241559,-151.0,0.00022901,7]
[365739503,1749862241568,-151.0,0.00022901,7]
[365739504,1749862241578,-151.0,0.00022901,7]
[365739505,1749862241587,-151.0,0.00022901,7]
[365739506,1749862241596,-151.0,0.00022901,7]
[365739507,1749862241607,-151.0,0.00022901,7]
[365739508,1749862241616,-460.0,0.00022901,4]
[365739509,1749862241625,-394.616137,0.00022901,7]
[365739510,1749862241635,-394.616137,0.00022901,7]
[365739511,1749862241645,-151.0,0.00022901,7]
[365739512,1749862241654,-151.0,0.00022901,7]
[365739513,1749862241663,-2218.7505955,0.00022934,8]
[365739514,1749862241673,-151.0,0.00022969,7]
[365739515,1749862241682,-151.0,0.00022969,7]
[365739516,1749862241691,-151.0,0.00022969,7]
[365739517,1749862241700,-151.0,0.00022986,7]
[365739518,1749862241710,-151.0,0.00022986,7]
[365739519,1749862241720,-176.9539549,0.00022986,2]
[365739520,1749862241730,-306.0,0.00022986,2]
[365739521,1749862241739,-573.6747916,0.00022986,2]
[365739522,1749862241748,-158.8399287,0.00022986,2]
[365739523,1749862241758,-158.8399287,0.00022986,2]
[365739524,1749862241767,-573.6747916,0.00022986,2]
[365739525,1749862241776,-158.5486917,0.00022986,2]
[365739526,1749862241785,-573.6747916,0.00022986,2]
[365739527,1749862241794,-1285.98,0.00022989,3]
[365739528,1749862241803,-642.99,0.00022989,3]
[365739529,1749862241813,-321.49,0.00022989,3]
[365739530,1749862241823,-160.75,0.00022989,3]
[365739531,1749862241833,-482.27,0.00022989,3]
[365739532,1749862241843,-324.04,0.0002299,10]
[365739533,1749862241853,-270.04,0.0002299,10]
[365739534,1749862241866,-225.03,0.0002299,10]
[365739535,1749862241876,-187.53,0.0002299,10]
[365739536,1749862241886,-295.96084163,0.00022999,4]
[365739537,1749862241896,-151.0,0.00022999,7]
[365739538,1749862241906,-151.0,0.00022999,7]
[365739539,1749862241916,-112223.29716911,0.00023,20]
[365739540,1749862241926,-151.0,0.00023,7]
[365739541,1749862241936,-151.0,0.00023,7]
[365739542,1749862241945,-151.0,0.00023,7]
[365739543,1749862241955,-151.0,0.00023,7]
[365739544,1749862241964,-151.0,0.00023,7]
[365739545,1749862241974,-151.0,0.00023,7]
[365739546,1749862241983,-153.057035,0.00023,7]
[365739547,1749862241994,-153.067976,0.00023,7]
[365739548,1749862242003,-153.067976,0.00023,7]
[365739549,1749862242013,-159.755118,0.00023,7]
[365739550,1749862242024,-159.755118,0.00023,7]
[365739551,1749862242033,-151.0,0.00023,7]
[365739552,1749862242042,-151.0,0.00023,7]
[365739553,1749862242052,-151.0,0.00023,7]
[365739554,1749862242061,-151.0,0.00023,7]
[365739555,1749862242071,-151.0,0.00023,7]
[365739556,1749862242081,-151.0,0.00023,7]
[365739557,1749862242090,-151.598266,0.00023,7]
[365739558,1749862242100,-271.490356,0.00023,7]
[365739559,1749862242110,-151.0,0.00023,7]
[365739560,1749862242119,-151.0,0.00023,7]
[365739561,1749862242128,-271.490356,0.00023,7]
[365739562,1749862242137,-151.0,0.00023,7]
[365739563,1749862242147,-4326.805281,0.00023,2]
[365739564,1749862242156,-4326.805281,0.00023,2]
[365739565,1749862242165,-151.0,0.00023,7]
[365739566,1749862242175,-151.0,0.00023,7]
[365739567,1749862242184,-151.0,0.00023,7]
[365739568,1749862242193,-151.0,0.00023,7]
[365739569,1749862242202,-151.0,0.00023,7]
[365739570,1749862242211,-151.0,0.00023,7]
[365739571,1749862242220,-199.863332,0.00023,7]
[365739572,1749862242229,-394.616137,0.00023,7]
[365739573,1749862242239,-394.616137,0.00023,7]
[365739574,1749862242249,-151.0,0.00023,7]
[365739575,1749862242258,-151.0,0.00023,7]
[365739576,1749862242268,-151.0,0.00023,7]
[365739577,1749862242277,-151.0,0.00023,7]
[365739578,1749862242286,-5000.0,0.00023,2]
[365739579,1749862242295,-2218.7505955,0.00023038,8]
[365739580,1749862242306,-1414.26,0.000231,7]
[365739581,1749862242321,-105423.28,0.000231,7]
[365739582,1749862242336,-151.0,0.000231,7]
[365739583,1749862242349,-151.0,0.000231,7]
[365739584,1749862242362,-2218.7505955,0.00023141,8]
[365739585,1749862242375,-572.7745404,0.00023174,4]
[365739586,1749862242390,-460.0,0.00023174,4]
[365739587,1749862242406,-460.0,0.00023174,4]
[365739588,1749862242422,-460.0,0.00023174,4]
[365739589,1749862242436,-460.0,0.00023174,4]
[365739590,1749862242450,-460.0,0.00023174,4]
[365739591,1749862242463,-460.0,0.00023174,4]
[365739592,1749862242476,-900.75,0.00023174,4]
[365739593,1749862242491,-460.0,0.00023174,4]
[365739594,1749862242506,-527.63,0.00023174,4]
[365739595,1749862242518,-460.0,0.00023174,4]
[365739596,1749862242531,-460.0,0.00023174,4]
[365739597,1749862242545,-460.0,0.00023174,4]
[365739598,1749862242562,-725.53,0.00023174,4]
[365739600,1749862242576,-460.0,0.00023174,4]
[365739601,1749862242592,-484.27,0.00023174,4]
[365739602,1749862242610,-4052.33,0.00023174,4]
[365739603,1749862242624,-460.0,0.00023174,4]
[365739604,1749862242636,-1181.2,0.00023174,4]
[365739605,1749862242647,-659.53,0.00023174,4]
[365739607,1749862242659,-460.0,0.00023174,4]
[365739608,1749862242675,-603.53,0.00023174,4]
[365739609,1749862242688,-460.0,0.00023174,4]
[365739610,1749862242699,-460.0,0.00023174,4]
[365739611,1749862242712,-1517.7,0.00023174,4]
[365739612,1749862242727,-460.0,0.00023174,4]
[365739613,1749862242738,-460.0,0.00023174,4]
[365739614,1749862242750,-679.05,0.00023174,4]
[365739615,1749862242761,-460.0,0.00023174,4]
[365739616,1749862242774,-490.58,0.00023174,4]
[365739617,1749862242786,-1057.15,0.00023174,4]
[365739618,1749862242798,-460.0,0.00023174,4]
[365739619,1749862242810,-460.0,0.00023174,4]
[365739620,1749862242823,-368.02611155,0.00023175,4]
[365739621,1749862242835,-460.0,0.00023175,4]
[365739622,1749862242847,-290.0,0.00023175,4]
[365739623,1749862242862,-460.0,0.00023175,4]
[365739624,1749862242876,-460.0,0.00023175,4]
[365739625,1749862242889,-153.0,0.00023184,2]
[365739626,1749862242901,-153.0,0.00023184,2]
[365739627,1749862242914,-153.0,0.00023184,2]
[365739628,1749862242927,-153.0,0.00023184,2]
[365739629,1749862242939,-153.0,0.00023184,2]
[365739630,1749862242951,-180.0571668,0.00023212,2]
[365739631,1749862242964,-2218.7505955,0.00023245,8]
[365739632,1749862242976,-160.0,0.00023304,3]
[365739633,1749862242989,-160.0,0.00023304,5]
[365739634,1749862243001,-1794.6521,0.00023324,3]
[365739635,1749862243013,-2218.7505955,0.00023348,9]
[365739636,1749862243025,-160.0,0.000234,5]
[365739637,1749862243038,-151.0,0.000234,10]
[365739638,1749862243050,-215.0738,0.00023421,2]
[365739639,1749862243062,-5201.45450173,0.00023428,2]
[365739640,1749862243076,-460.0,0.00023448,4]
[365739641,1749862243088,-460.0,0.00023448,4]
[365739642,1749862243101,-460.0,0.00023448,4]
[365739643,1749862243113,-460.0,0.00023448,4]
[365739644,1749862243125,-460.0,0.00023448,4]
[365739645,1749862243137,-900.75,0.00023448,4]
[365739646,1749862243149,-460.0,0.00023448,4]
[365739647,1749862243161,-527.63,0.00023448,4]
[365739648,1749862243172,-460.0,0.00023448,4]
[365739649,1749862243186,-460.0,0.00023448,4]
[365739650,1749862243198,-460.0,0.00023448,4]
[365739651,1749862243208,-725.53,0.00023448,4]
[365739652,1749862243217,-460.0,0.00023448,4]
[365739653,1749862243227,-484.27,0.00023448,4]
[365739654,1749862243236,-4052.33,0.00023448,4]
[365739655,1749862243245,-460.0,0.00023448,4]
[365739656,1749862243254,-1181.2,0.00023448,4]
[365739657,1749862243264,-659.53,0.00023448,4]
[365739658,1749862243273,-460.0,0.00023448,4]
[365739659,1749862243282,-603.53,0.00023448,4]
[365739660,1749862243292,-460.0,0.00023448,4]
[365739661,1749862243302,-460.0,0.00023448,4]
[365739662,1749862243312,-1517.7,0.00023448,4]
[365739663,1749862243321,-460.0,0.00023448,4]
[365739664,1749862243475,-460.0,0.00023448,4]
[365739665,1749862243486,-679.05,0.00023448,4]
[365739666,1749862243497,-460.0,0.00023448,4]
[365739667,1749862243508,-490.58,0.00023448,4]
[365739668,1749862243517,-1057.15,0.00023448,4]
[365739669,1749862243527,-460.0,0.00023448,4]
[365739670,1749862243536,-460.0,0.00023448,4]
[365739671,1749862243546,-151.0,0.00023449,7]
[365739672,1749862243555,-151.0,0.00023449,7]
[365739673,1749862243564,-151.0,0.00023449,7]
[365739674,1749862243573,-151.0,0.00023449,7]
[365739675,1749862243583,-159.755118,0.00023449,7]
[365739676,1749862243591,-159.755118,0.00023449,7]
[365739677,1749862243602,-460.0,0.00023449,4]
[365739678,1749862243611,-460.0,0.00023449,4]
[365739679,1749862243620,-460.0,0.00023449,4]
[365739680,1749862243630,-2218.7505955,0.00023452,9]
[365739681,1749862243639,-281.0,0.00023529,2]
[365739682,1749862243649,-5000.0,0.00023548,2]
[365739683,1749862243658,-2218.7505955,0.00023555,9]
[365739684,1749862243667,-200.0,0.00023561,4]
[365739685,1749862243676,-150.61138,0.00023561,4]
[365739686,1749862243685,-964.0,0.00023586,2]
[365739687,1749862243695,-653.0,0.00023586,2]
[365739688,1749862243703,-2160.0,0.00023586,2]
[365739689,1749862243713,-405.0,0.00023586,2]
[365739690,1749862243722,-150.125,0.00023586,2]
[365739691,1749862243731,-157.0,0.000236,4]
[365739692,1749862243740,-157.0,0.000236,4]
[365739693,1749862243749,-157.0,0.000236,4]
[365739694,1749862243759,-157.0,0.000236,3]
[365739695,1749862243768,-151.0,0.000236,10]
[365739696,1749862243777,-151.0,0.000236,5]
[365739697,1749862243786,-397.0,0.000236,2]
[365739698,1749862243795,-180.0571668,0.00023623,2]
[365739699,1749862243805,-164.24010783,0.00023623,4]
[365739700,1749862243815,-164.24010783,0.00023623,4]
[365739701,1749862243824,-164.24010783,0.00023623,4]
[365739702,1749862243833,-164.24010783,0.00023623,4]
[365739703,1749862243842,-164.24,0.00023623,4]
[365739704,1749862243852,-159.67788261,0.00023623,4]
[365739705,1749862243864,-159.67788261,0.00023623,4]
[365739706,1749862243874,-159.67788261,0.00023623,4]
[365739707,1749862243883,-159.67788261,0.00023623,4]
[365739708,1749862243893,-159.67788261,0.00023623,4]
[365739709,1749862243902,-159.67788261,0.00023623,4]
[365739710,1749862243912,-159.67788261,0.00023623,4]
[365739711,1749862243921,-159.67788261,0.00023623,4]
[365739712,1749862243931,-159.67788261,0.00023623,4]
[365739713,1749862243942,-159.67788261,0.00023623,4]
[365739714,1749862243952,-159.67788261,0.00023623,4]
[365739715,1749862243962,-2218.7505955,0.00023659,9]
[365739716,1749862243972,-166.73694563,0.0002368,2]
[365739717,1749862243981,-159.67,0.0002368,4]
[365739718,1749862243991,-1721.0,0.00023685,2]
[365739719,1749862244000,-420.0,0.00023697,2]
[365739720,1749862244010,-420.0,0.00023697,2]
[365739721,1749862244018,-157.0,0.000237,7]
[365739722,1749862244028,-157.0,0.000237,7]
[365739723,1749862244038,-151.0,0.000237,6]
[365739724,1749862244047,-151.0,0.000237,7]
[365739725,1749862244056,-151.0,0.000237,6]
[365739726,1749862244066,-151.0,0.000237,7]
[365739727,1749862244075,-151.0,0.000237,7]
[365739728,1749862244085,-151.0,0.000237,7]
[365739729,1749862244095,-172.039239,0.000237,7]
[365739730,1749862244105,-1339.05392667,0.000237,2]
[365739731,1749862244115,-184.305441,0.000237,7]
[365739732,1749862244125,-151.0,0.000237,7]
[365739733,1749862244135,-151.0,0.000237,7]
[365739734,1749862244145,-151.0,0.000237,7]
[365739735,1749862244155,-151.0,0.000237,7]
[365739736,1749862244165,-460.0,0.00023722,4]
[365739737,1749862244175,-460.0,0.00023722,4]
[365739738,1749862244185,-460.0,0.00023722,4]
[365739739,1749862244194,-433.3531363,0.00023722,4]
[365739740,1749862244204,-460.0,0.00023722,4]
[365739741,1749862244213,-900.75,0.00023722,4]
[365739742,1749862244222,-460.0,0.00023722,4]
[365739743,1749862244232,-527.63,0.00023722,4]
[365739744,1749862244242,-460.0,0.00023722,4]
[365739745,1749862244253,-460.0,0.00023722,4]
[365739746,1749862244263,-460.0,0.00023722,4]
[365739747,1749862244272,-725.53,0.00023722,4]
[365739748,1749862244282,-460.0,0.00023722,4]
[365739749,1749862244291,-484.27,0.00023722,4]
[365739750,1749862244301,-4052.33,0.00023722,4]
[365739751,1749862244310,-460.0,0.00023722,4]
[365739752,1749862244319,-1181.2,0.00023722,4]
[365739753,1749862244329,-659.53,0.00023722,4]
[365739754,1749862244338,-460.0,0.00023722,4]
[365739755,1749862244349,-603.53,0.00023722,4]
[365739756,1749862244359,-460.0,0.00023722,4]
[365739757,1749862244369,-460.0,0.00023722,4]
[365739758,1749862244379,-1517.7,0.00023722,4]
[365739759,1749862244389,-486.82,0.00023722,4]
[365739760,1749862244398,-460.0,0.00023722,4]
[365739761,1749862244407,-679.05,0.00023722,4]
[365739762,1749862244417,-460.0,0.00023722,4]
[365739763,1749862244428,-490.58,0.00023722,4]
[365739764,1749862244439,-1057.15,0.00023722,4]
[365739765,1749862244449,-460.0,0.00023722,4]
[365739766,1749862244458,-460.0,0.00023722,4]
[365739767,1749862244468,-151.0,0.00023723,7]
[365739768,1749862244477,-172.019868,0.00023723,7]